Cogmind - Beta 9.6 @@@ ROGUE MODE // 2020.07.11 @ 13:47:33 Player: GGOBC-006 Result: Destroyed by as-95175 with Assembled Heavy Rifle Performance ------------- Evolutions (0) 0 Regions Visited (2) 400 Robots Destroyed (66) 330 Value Destroyed (680) 680 Prototype IDs (0) 0 Alien Tech Used (0) 0 Bonus (0) 0 TOTAL SCORE: 1410 Bonus ------- None Cogmind --------- Core Integrity 0/250 Matter 230/300 Energy 125/125 System Corruption 0% Temperature Cool (0) Movement Core (100) Ox1 Location -10/Mines Parts ------- > --- POWER (1) -------- Light Ion Engine > --- PROPULSION (2) --- (None) > --- UTILITY (2) ------ Signal Interpreter > --- WEAPON (2) ------- Assault Rifle > --- INVENTORY (4) ---- Flight Unit Flight Unit Experimental Sensor Array Grenade Launcher Peak State ------------ > --- POWER ------------ Light Ion Engine > --- PROPULSION ------- Flight Unit Flight Unit > --- UTILITY ---------- Signal Interpreter Hacking Suite > --- WEAPON ----------- Particle Gun Light Assault Rifle > --- INVENTORY -------- Flight Unit Flight Unit Flight Unit Grenade Launcher [Rating: 10] Favorites ----------- Power Light Ion Engine Engine Light Ion Engine Propulsion Flight Unit Wheel Wheel Hover Unit Backup Propulsion I Flight Unit Flight Unit Utility Hacking Suite Device Improved Terrain Scanner Storage Small Storage Unit Processor Signal Interpreter Hackware Hacking Suite Weapon Small Laser Energy Gun Small Laser Ballistic Gun Assault Rifle Launcher Grenade Launcher Special Weapon Mining Laser Build | -11 -10 -10 ------- Run | Scr Mat Min Slots Evolved . | . . . Power . | . . . Propulsion . | . . . Utility . | . . . Weapon . | . . . Parts Attached 52 | 14 36 2 Power 7 | 2 5 . Engine 7 | 2 5 . Core . | . . . Reactor . | . . . Propulsion 18 | 6 12 . Treads . | . . . Leg . | . . . Wheel 11 | 6 5 . Hover . | . . . Flight 7 | . 7 . Utility 9 | 4 5 . Device 3 | 2 1 . Storage 1 | 1 . . Processor 4 | 1 3 . Hackware 1 | . 1 . Protection . | . . . Artifact . | . . . Weapon 18 | 2 14 2 Energy Gun 6 | 1 4 1 Energy Cannon . | . . . Ballistic Gun 7 | 1 6 . Ballistic Cannon . | . . . Launcher 2 | . 1 1 Special Weapon 3 | . 3 . Impact Weapon . | . . . Slashing Weapon . | . . . Piercing Weapon . | . . . Special Melee Weapon . | . . . Unidentified Prototypes . | . . . Parts Lost 9 | . 5 4 Power 1 | . 1 . Propulsion 4 | . 2 2 Utility 1 | . . 1 Weapon 3 | . 2 1 Highest Loss Streak 4 | . 4 3 Average Slot Usage (%) 97 | . 97 96 Engine 13 | . 13 14 Wheel 8 | . 9 . Flight 18 | . 17 25 Device 6 | . 7 . Processor 12 | . 11 14 Hackware 8 | . 7 13 Energy Gun 13 | . 13 13 Ballistic Gun 12 | . 12 14 Naked Turns . | . . . Heaviest Build 13 | 13 10 8 Greatest Support 32 | 32 20 8 Greatest Overweight (x) 2 | 2 1 1 Average Overweight (x) . | . . . Largest Inventory Capacity 6 | 6 4 4 Average Capacity 4 | 4 4 4 Most Carried 6 | 6 4 4 Average Carried 3 | 3 3 3 Final Capacity 4 | 4 4 4 Final Carried 4 | 4 4 4 Class Distribution -------------------- 89% | Mutant 10% | Scavenger-Mutant Dominant Class ---------------- Mutant | -10/Materials Mutant | -10/Mines Resources | -11 -10 -10 ----------- Run | Scr Mat Min Matter Collected 1363 | 393 806 164 Remotely 227 | 227 . . Salvage Created 1549 | 328 794 427 Parts 129 | 28 74 27 Haulers Intercepted 2 | . 2 . Recyclers Shooed 5 | . 2 3 Parts Field Recycled . | . . . Retrieved Matter . | . . . Parts Self-Destructed . | . . . Prevented . | . . . Kills | -11 -10 -10 ------- Run | Scr Mat Min Combat Hostiles Destroyed 24 | . 15 9 Guns 18 | . 12 6 Cannons 1 | . 1 . AOE 5 | . 2 3 Classes Destroyed 11 | 3 7 1 Worker 16 | 3 6 7 Builder 6 | . 4 2 Tunneler 8 | 8 . . Hauler 2 | . 2 . Recycler 5 | 1 2 2 Mechanic 1 | . 1 . Operator 1 | . 1 . Watcher 3 | . 3 . Swarmer 12 | . 9 3 Grunt 6 | . 6 . Assembled 6 | . . 6 Best Kill Streak 11 | 5 6 11 Combat Bots Only 6 | . 6 4 Max Kills in Single Turn 2 | 1 1 2 Gunslinging . | . . . Exploded 2 | . 1 2 Melee . | . . . Uniques/NPCs Destroyed . | . . . Combat | -11 -10 -10 -------- Run | Scr Mat Min Damage Taken 991 | . 686 305 Core 253 | . 123 130 Absorbed by Shields . | . . . Core Remaining (%) 100 | 100 . . Volleys Fired 338 | 53 226 59 Largest 2 | 2 2 2 Hottest 100 | 70 100 60 Shots Fired 592 | 106 385 101 Gun 573 | 106 368 99 Cannon . | . . . Launcher 8 | . 6 2 Special 11 | . 11 . Kinetic 355 | 53 245 57 Thermal 229 | 53 134 42 Explosive 8 | . 6 2 Electromagnetic . | . . . Robot Hit Streak 18 | 7 18 7 Robot Miss Streak 6 | 6 5 5 Penetration Max . | . . . Secondary Targets 5 | . 3 2 Max Gunslinging Chain 1 | . 1 1 Shots Hit Robots 211 | 55 109 47 Core Hits 95 | 17 49 29 Critical Hits 4 | 2 2 . Critical Kills 3 | 1 2 . Critical Parts Destroyed 1 | 1 . . Melee Attacks . | . . . Impact . | . . . Slashing . | . . . Piercing . | . . . Sneak Attacks . | . . . Combat Hostiles . | . . . Follow-up Attacks . | . . . Damage Inflicted 2760 | 577 1574 609 Guns 2187 | 577 1056 554 Cannons . | . . . Explosions 471 | . 416 55 Melee . | . . . Ramming 6 | . 6 . Kinetic 1087 | 179 652 256 Thermal 1265 | 398 569 298 Explosive 369 | . 314 55 Electromagnetic 33 | . 33 . Impact . | . . . Slashing . | . . . Piercing . | . . . Highest Corruption . | . . . Average Corruption . | . . . Corruption Purged . | . . . Overload Shots . | . . . Overflow Damage 125 | . 125 . Projectiles . | . . . Explosions 125 | . 125 . Melee . | . . . Knockbacks . | . . . Impact . | . . . Kinetic . | . . . Secondary . | . . . Self-Inflicted Damage 2 | . 2 . Shots . | . . . Rammed 2 | . 2 . Targets Rammed 2 | . 2 . Kicked . | . . . Crushed . | . . . Highest Temperature 190 | 190 170 44 Average Temperature 41 | 64 39 17 Received Heat Transfer 158 | . 138 20 Siege Activations . | . . . Robots Corrupted . | . . . Combat Hostiles . | . . . Parts Fried . | . . . Impact Corruptions . | . . . Robots Melted . | . . . Combat Hostiles . | . . . Parts Melted 2 | 1 1 . Heat Transferred 3077 | 1184 1218 675 Parts Sabotaged . | . . . Parts Stolen . | . . . Parts Stripped . | . . . Power Chain Reactions . | . . . Missiles Intercepted . | . . . Alert | -11 -10 -10 ------- Run | Scr Mat Min Peak Influence 259 | 60 259 209 Average Influence 76 | 30 70 146 Maximum Alert Level 1 | . 1 1 Low Security (%) 91 | 100 90 94 Level 1 8 | . 9 5 Level 2 . | . . . Level 3 . | . . . Level 4 . | . . . Level 5 . | . . . High Security . | . . . Max Security . | . . . Squads Dispatched 4 | . 4 . Investigation 3 | . 3 . Extermination . | . . . Reinforcement 1 | . 1 . Assault . | . . . Garrison . | . . . Intercept . | . . . Construction Impeded . | . . . Haulers Reinforced . | . . . Stealth | -11 -10 -10 --------- Run | Scr Mat Min Distress Signals . | . . . Communications Jammed . | . . . Distress Signals . | . . . Times Spotted 34 | . 25 9 Peak Tracking Total 6 | . 6 2 Tactical Retreats 1 | . . 1 Traps | -11 -10 -10 ------- Run | Scr Mat Min Traps Triggered . | . . . Indirectly . | . . . Trap Hack Attempts . | . . . Triggered . | . . . Disarmed . | . . . Reprogrammed 1 | . 1 . Reused . | . . . Traps Extracted . | . . . Installed . | . . . Triggered . | . . . Machines | -11 -10 -10 ---------- Run | Scr Mat Min Machines Disabled 14 | . 12 2 Max in Single Turn 2 | . 2 1 Machines Sabotaged . | . . . Garrisons Compromised . | . . . Overloaded Fab Kills . | . . . Fab Network Shutdowns . | . . . Hacking | -11 -10 -10 --------- Run | Scr Mat Min Machines Accessed 9 | . 9 . Terminals 6 | . 6 . Fabricators . | . . . Repair Stations 1 | . 1 . Recycling Units 2 | . 2 . Scanalyzers . | . . . Garrison Access . | . . . Total Hacks 32 | . 32 . Successful 26 | . 26 . Failed 6 | . 6 . Catastrophic . | . . . Database Lockouts . | . . . Manual 22 | . 22 . Terminals 22 | . 22 . Fabricators . | . . . Repair Stations 4 | . 4 . Recycling Units 6 | . 6 . Scanalyzers . | . . . Garrison Access . | . . . Terminal Hacks 5 | . 5 . Unreport Threat 1 | . 1 . Locate Traps 2 | . 2 . Reprogram Traps 2 | . 2 . Fabricator Hacks . | . . . Repair Station Hacks 4 | . 4 . Scan Component 1 | . 1 . Repair 1 | . 1 . Refit 2 | . 2 . Recycling Unit Hacks 4 | . 4 . Process 1 | . 1 . Report Inventory 2 | . 2 . Retrieve Components 1 | . 1 . Scanalyzer . | . . . Garrison Access Hacks . | . . . Unauthorized Hacks 13 | . 13 . Terminals 11 | . 11 . Track 2 | . 2 . Botnet 6 | . 6 . Detonate 2 | . 2 . Operators 1 | . 1 . Fabricators . | . . . Repair Stations . | . . . Recycling Units 2 | . 2 . Tunnel 2 | . 2 . Scanalyzers . | . . . Garrison Access . | . . . Data Cores Recovered . | . . . Used . | . . . Hacking Detections 8 | . 8 . Full Trace Events 2 | . 2 . Feedback Events . | . . . Feedback Blocked . | . . . Robot Schematics Acquired . | . . . Robots Built . | . . . Matter . | . . . Time . | . . . Total Robot Build Rating . | . . . Part Schematics Acquired . | . . . Parts Built . | . . . Matter . | . . . Time . | . . . Total Part Build Rating . | . . . Parts Repaired 1 | . 1 . Time 26 | . 26 . Parts Recycled . | . . . Recycled Matter 63 | . 63 . Retrieved Matter . | . . . Retrieved Components 9 | . 9 . Parts Scanalyzed . | . . . Part Schematics Acquired . | . . . Parts Damaged . | . . . Bothacking | -11 -10 -10 ------------ Run | Scr Mat Min Used RIF Installer . | . . . Robots Hacked . | . . . Non-combat . | . . . Combat . | . . . Robot Hacks Applied . | . . . Relay Couplers Released . | . . . Robots Rewired . | . . . Allies Hacked . | . . . Hacks Repelled . | . . . Allies | -11 -10 -10 -------- Run | Scr Mat Min Total Allies . | . . . Largest Group . | . . . Highest-Rated Group . | . . . Highest-Rated Ally . | . . . Total Orders . | . . . Ally Attacks . | . . . Total Damage . | . . . Kills . | . . . Allies Corrupted . | . . . Allies Melted . | . . . Intel | -11 -10 -10 ------- Run | Scr Mat Min Robot Analysis Total . | . . . Derelict Logs Recovered 1 | . . 1 Drone Launches . | . . . Drone Recoveries . | . . . Exploration | -11 -10 -10 ------------- Run | Scr Mat Min Turns Passed 4005 | 334 3193 478 Spaces Moved 1910 | 181 1334 395 Core 31 | 21 10 . Treads . | . . . Legs . | . . . Wheels 394 | 160 234 . Hover 44 | . 44 . Flight 1441 | . 1046 395 Fastest Speed 37 | 50 37 37 Average Speed 48 | 86 46 37 Slowest Speed 150 | 150 120 120 Overloaded Moves . | . . . Propulsion Burnouts . | . . . Robots Hopped 2 | . . 2 Cave-ins Triggered . | . . . Exploration Rate (%) 40 | 7 77 38 Regions Visited 2 Branch Regions 1 Pre-discovered Areas 2 | . 2 . Known Exits Taken 1 | . 1 . Unknown Exits Taken 1 | 1 . . Scrap Searched 1 | . . 1 Spaces Dug . | . . . Terrain Destroyed 196 | . 178 18 Melee . | . . . Projectile . | . . . AOE 196 | . 178 18 Actions | -11 -10 -10 --------- Run | Scr Mat Min Total 4415 | 260 3534 621 Wait 2066 | 6 1895 165 Move 1904 | 180 1333 391 Hop 2 | . . 2 Pick Up 11 | 3 7 1 Fast Attach 28 | 9 19 . Attach . | . . . Detach . | . . . Swap 24 | 5 17 2 Drop 40 | 4 35 1 Fire 338 | 53 226 59 Melee . | . . . Ram 2 | . 2 . Kick . | . . . Crush . | . . . Escape Stasis . | . . . Rewire . | . . . Trap . | . . . Miscellaneous . | . . . Route ------- -11/Scrapyard -10/Materials (discovered 3 exits: *Mat / *Min x2) -10/Mines (discovered 1 exit: *Mat) History --------- Turn | Location | Event 8 | -11/Scrapyard | Discovered new exit (range 16) 335 | -11/Scrapyard | Entered Materials 336 | -10/Materials | Build established: Scavenger-Mutant 488 | -10/Materials | Discovered new exit (range 11) 650 | -10/Materials | Build established: Mutant 1441 | -10/Materials | Lost 4 parts (2n2w) 1748 | -10/Materials | Discovered new exit (range 16) 1817 | -10/Materials | Identified exit to Materials 1909 | -10/Materials | Discovered new exit (range 7) 3180 | -10/Materials | Identified exit to Mines 3224 | -10/Materials | Repaired Flight Unit 3528 | -10/Materials | Entered Mines 3540 | -10/Mines | Found a damaged Exp. Sensor Array with a note attached 3544 | -10/Mines | Found Prototype Device 3547 | -10/Mines | Learned Materials stockpile data 3636 | -10/Mines | Discovered exit to Materials (range 10) 3685 | -10/Mines | Assembled infested the area 3985 | -10/Mines | Core integrity fell below 50% 3996 | -10/Mines | Core integrity fell below 20% 4006 | -10/Mines | Destroyed by as-95175 with Assembled Heavy Rifle Last Messages --------------- R-06 Scavenger collects Wheel. K-01 Serf collects debris. R-06 Scavenger collects Lgt. Ion Engine. K-01 Serf collects debris. U-05 Engineer destroyed. K-01 Serf collects debris. U-05 Engineer destroyed. K-01 Serf collects debris. K-01 Serf destroyed. R-06 Scavenger collects Lgt. Ion Engine. Acquired 14 matter. Acquired 10 matter. Hacking Suite destroyed. U-05 Engineer destroyed. Sml. Laser destroyed. K-01 Serf collects debris. K-01 Serf destroyed. U-05 Engineer destroyed. as-58490 destroyed. Flight Unit destroyed. Map ----- +----------------------------------------------------+ | ??????????????????????????????##### ##??? | | ??????????????????????????##### ##?? | | ?????????????????????????## < #?? | | ?????????????????????????# #?? | | ?????????????????????????# ## #?? | | ?????????????????????????## =%#### ##?? | | ??????????????????????????###=#??# ##?? | | ????????????????????????????# #??# #?? | | ??????????????????###########%#??# % #?? | | ??????????????????# ##%#??## ##?? | | ??????????????????# ##=#???### #??? | | ??????????????????#= """ ## #?????# #??? | | ??????????????????# """ ## ####### #??? | | ??????????????????#! """ ## ## #??? | | ??????????????????## ######## ## ######??? | | ???????????????????# #??????# ## #???????? | | ???????????????????# #????###%## #???????? | | ???????????????????# #????# #???????? | | ???????????????????# #????# ######???????? | | ???????????????????# ###### #????????????? | | ???????????????????# ##=#????????????? | | ???????????????????##### ##%#????????????? | | ???????????????????????# ##!#????????????? | | ???????????????????????#=##!#????????????? | | ?????????????????????###%##%#????????????? | | "????????#############%=!@%!#????????????? | | ???????## %%%!=!=%!%###????????????? | | "??????## % =|%*===%!#??????????????? | | "??????# a########=%=*=##??????????????? | | "??????# #??????#=!!=##???????????????? | | ??????# ##??????##!a##????????????????? | | #?????## ##????????##=#?????????????????? | | #???### #??????????#*#???????#######???? | | #??## #??????????# #??????## # ##??? | | #?## ##?????????# #?????## #??? | | ### #?????????# ######## #??? | | #?????????# [ =#??? | | ## ##?????????# ######## #??? | | ?# ####??????????# #?????## #?? | | ?# ##?????????????# #??????## " " ##?? | | ?## ##??????????????# #???????# #??? | | ??# #???????????????# #???????########??? | | ??# #???????????????# #?????????????????? | | ??# #???????????????# #?????????????????? | | ??# #???????????????# #?????????????????? | | ??# #???????????????# #?????????????????? | | ??# #???????????????# #?????????????????? | | ??# #???????????????# ###???????????????? | | ??# #???????????????#! #???????????????? | | ?? #???????????????### #???????????????? | +----------------------------------------------------+ Best States ------------- Heat Dissipation 35 Energy Generation 10 Energy Capacity 250 Matter Stores 300 Matter Capacity 300 Sight Range 16 Terrain Scan Range 16 Terrain Scan Density 60 Evasion (%) 62 Offensive Hacking 10 Item Schematics ----------------- None Robot Schematics ------------------ None Fabricated ------------ Nothing Alien Tech Used ----------------- None Achievements -------------- Use The Force Challenges ------------ None Game ------ Seed SwordBoreMeganuke Manual? 0 Play Time 00:35:44 Cumulative 31.4 hours Start 2020.07.11 @ 12:53:34 End 2020.07.11 @ 13:47:33 Sessions 1 Manual Loads 0 Difficulty Rogue Special Mode None Game No. 26 Rogue 26 Adventurer 0 Explorer 0 Win Type - Total 0 Types 0/0/0/0/0/0/0 Lore% 42 Gallery% 35 Achievement% 31 Wizard Run 0 Options --------- ASCII 0 Keyboard 0 Movement Numpad Keybinds 0 Fullscreen 2 Font 18/TerminusBold Map View 76x50 Tactical HUD 0 Map Filters NONE Filters NONE Steam 1 RUN: afb3f98b-b39a-4c35-9ee1-0952dd5ed2d6